Cogmind - Beta 15 @@@ ROGUE MODE // 2025.09.04 @ 18:01:38 Player: Dosh Result: Destroyed by L-31 Rogue with Katana Performance ------------- Evolutions (0) 0 Regions Visited (4) 800 Robots Destroyed (30) 150 Value Destroyed (674) 674 Prototype IDs (23) 460 Alien Tech Used (0) 0 Bonus (300) 300 TOTAL SCORE: 2384 Bonus ------- Aligned with FarCom 300 Cogmind --------- Core Integrity 0/250 Matter 282/300 Energy 160/160 System Corruption 0% Temperature Cool (10) Movement Treading (240) Ox1 Location -9/Mines Parts ------- > --- POWER (1) -------- Light Nuclear Core > --- PROPULSION (2) --- Light Treads Light Treads > --- UTILITY (2) ------ High-capacity Storage Unit Light Armor Plating > --- WEAPON (2) ------- Assault Rifle Light Assault Rifle > --- INVENTORY (20) --- Light Ion Engine Light Nuclear Core Compact Wheel Improved Heat Sink Improved Heat Sink Medium Matter Pod (100) Light Armor Plating Light Armor Plating Light Armor Plating Hacking Suite Latent Energy Streamer Particle Cannon Particle Cannon Particle Cannon Particle Cannon Guided Plasma Cannon Light Assault Rifle Datajack Peak State ------------ > --- POWER ------------ Light Nuclear Core > --- PROPULSION ------- Light Treads Light Treads > --- UTILITY ---------- High-capacity Storage Unit Light Armor Plating > --- WEAPON ----------- Assault Rifle Light Assault Rifle > --- INVENTORY -------- Light Ion Engine Light Nuclear Core Compact Wheel Improved Heat Sink Improved Heat Sink Medium Matter Pod Light Armor Plating Light Armor Plating Light Armor Plating Light Armor Plating Hacking Suite Latent Energy Streamer Particle Cannon Particle Cannon Particle Cannon Particle Cannon Guided Plasma Cannon Light Assault Rifle Datajack [Rating: 13] Favorites ----------- Power Light Nuclear Core Engine Light Ion Engine Power Core Light Nuclear Core Propulsion Light Treads Treads Light Treads Leg Aluminum Leg Wheel Compact Wheel Utility High-capacity Storage Unit Storage High-capacity Storage Unit Protection Light Armor Plating Weapon Assault Rifle Ballistic Gun Assault Rifle Build | -11 -10 -10 -10 -9 ------- Run | Yrd Mat Min Exi Min Slots Evolved . | . . . . . Power . | . . . . . Propulsion . | . . . . . Utility . | . . . . . Weapon . | . . . . . Parts Attached 20 | 6 11 2 . 1 Power 4 | 1 2 1 . . Engine 2 | 1 1 . . . Core 2 | . 1 1 . . Reactor . | . . . . . Propulsion 5 | 2 3 . . . Treads 3 | 2 1 . . . Leg 1 | . 1 . . . Wheel 1 | . 1 . . . Hover . | . . . . . Flight . | . . . . . Utility 6 | 1 3 1 . 1 Device . | . . . . . Storage 2 | 1 1 . . . Processor . | . . . . . Hackware . | . . . . . Protection 4 | . 2 1 . 1 Artifact . | . . . . . Weapon 5 | 2 3 . . . Energy Gun . | . . . . . Energy Cannon . | . . . . . Ballistic Gun 5 | 2 3 . . . Ballistic Cannon . | . . . . . Launcher . | . . . . . Special Weapon . | . . . . . Impact Weapon . | . . . . . Slashing Weapon . | . . . . . Piercing Weapon . | . . . . . Special Melee Weapon . | . . . . . Unidentified Prototypes . | . . . . . Parts Lost 7 | . 6 1 . . Power 1 | . 1 . . . Propulsion 1 | . 1 . . . Utility 2 | . 1 1 . . Weapon 3 | . 3 . . . Highest Loss Streak 2 | . 2 1 . . To Critical Strikes . | . . . . . Average Backups 14 | . 12 19 19 18 Power 1 | . . 1 2 2 Propulsion 1 | . 1 3 1 1 Utility 6 | . 5 8 8 7 Weapon 5 | . 4 5 5 7 Tool/Special . | . . . . . Unused Backups 17 | . . . 2 15 Power . | . . . . . Propulsion 1 | . . . 1 . Utility 8 | . . . 1 7 Weapon 7 | . . . . 7 Tool/Special 1 | . . . . 1 Average Slot Usage (%) 98 | . 98 100 100 100 Engine 6 | . 9 . . . Core 7 | . 4 14 14 14 Treads 21 | . 19 28 28 28 Leg 3 | . 4 . . . Wheel 2 | . 3 . . . Storage 14 | . 14 14 14 14 Protection 13 | . 12 14 14 14 Ballistic Gun 27 | . 27 28 28 28 Peak Build Rating 13 | 6 11 12 13 13 Average Rating 9 | 4 8 11 12 12 On Entrance 8 | . 6 11 12 13 Naked Turns . | . . . . . Heaviest Build 52 | 12 52 51 51 51 Greatest Support 40 | 40 40 40 40 40 Greatest Overweight (x) 3 | 1 3 1 1 1 Average Overweight (x) 1 | . 1 1 1 1 Largest Inventory Capacity 20 | 8 20 20 20 20 Average Capacity 17 | 7 16 20 20 20 Most Carried 20 | 1 19 20 20 19 Average Carried 14 | . 12 19 19 18 Final Capacity 20 | 8 20 20 20 20 Final Carried 20 | 1 19 20 19 18 Class Distribution -------------------- 100% | Mutant Dominant Class ---------------- Mutant | -10/Materials Mutant | -10/Mines Mutant | -10/Exiles Mutant | -9/Mines Resources | -11 -10 -10 -10 -9 ----------- Run | Yrd Mat Min Exi Min Matter Collected 1083 | 197 769 117 . . Remotely . | . . . . . Salvage Created 910 | . 771 139 . . Parts 55 | . 45 10 . . Haulers Intercepted 2 | . 2 . . . Recyclers Shooed 1 | . 1 . . . Parts Field Recycled . | . . . . . Retrieved Matter . | . . . . . Parts Self-Destructed . | . . . . . Prevented . | . . . . . Kills | -11 -10 -10 -10 -9 ------- Run | Yrd Mat Min Exi Min Combat Hostiles Destroyed 22 | . 17 5 . . Guns 22 | . 17 5 . . Classes Destroyed 6 | . 6 . . . Worker 2 | . 2 . . . Hauler 2 | . 2 . . . Operator 1 | . 1 . . . Watcher 3 | . 3 . . . Swarmer 9 | . 6 3 . . Grunt 13 | . 11 2 . . Best Kill Streak 3 | . 3 3 . . Combat Bots Only 3 | . 3 3 . . Max Kills in Single Turn 2 | . 2 1 . . Gunslinging 1 | . 1 . . . Exploded . | . . . . . Melee . | . . . . . Uniques/NPCs Destroyed . | . . . . . Combat | -11 -10 -10 -10 -9 -------- Run | Yrd Mat Min Exi Min Hostile Shots Fired 151 | . 116 20 . 15 Missed 35 | . 33 1 . 1 Hits 116 | . 83 19 . 14 Melee 5 | . . . . 5 Projectile 111 | . 83 19 . 9 Critical Strikes 3 | . 1 . . 2 Damage Taken 1421 | . 961 194 . 266 Core 261 | . 160 11 . 90 Absorbed by Shields . | . . . . . Redirected to Shielding 50 | . 50 . . . Regen/Repaired (Parts) 187 | . 187 . . . Core Remaining (%) 100 | 100 . . . . Volleys Fired 108 | . 94 12 . 2 Largest 2 | . 2 2 . 2 Hottest 40 | . 40 40 . 40 Shots Fired 216 | . 188 24 . 4 Gun 216 | . 188 24 . 4 Cannon . | . . . . . Launcher . | . . . . . Special . | . . . . . Kinetic 216 | . 188 24 . 4 Thermal . | . . . . . Explosive . | . . . . . Electromagnetic . | . . . . . Robot Hit Streak 15 | . 15 12 . 4 Robot Miss Streak 6 | . 6 1 . 1 Penetration Max . | . . . . . Secondary Targets 2 | . 1 1 . . Max Gunslinging Chain 1 | . 1 1 . . Shots Hit Robots 143 | . 122 18 . 3 Core Hits 52 | . 42 10 . . Critical Kills . | . . . . . Critical Parts Destroyed 1 | . 1 . . . Critical Strikes 1 | . 1 . . . Destroy 1 | . 1 . . . Melee Attacks . | . . . . . Impact . | . . . . . Slashing . | . . . . . Piercing . | . . . . . Sneak Attacks . | . . . . . Combat Hostiles . | . . . . . Follow-up Attacks . | . . . . . Damage Inflicted 1780 | 1 1558 188 . 33 Guns 1763 | . 1542 188 . 33 Cannons . | . . . . . Explosions . | . . . . . Melee . | . . . . . Ramming 17 | 1 16 . . . Kinetic 1763 | . 1542 188 . 33 Thermal . | . . . . . Explosive . | . . . . . Electromagnetic . | . . . . . Impact . | . . . . . Slashing . | . . . . . Piercing . | . . . . . Highest Corruption . | . . . . . Average Corruption . | . . . . . Corruption Purged . | . . . . . Corruption Blocked . | . . . . . Overload Shots . | . . . . . Overflow Damage . | . . . . . Projectiles . | . . . . . Explosions . | . . . . . Melee . | . . . . . Knockbacks . | . . . . . Impact . | . . . . . Kinetic . | . . . . . Secondary . | . . . . . Self-Inflicted Damage . | . . . . . Shots . | . . . . . Rammed 5 | 1 4 . . . Targets Rammed 5 | 1 4 . . . Kicked . | . . . . . Crushed . | . . . . . Highest Temperature 55 | . 34 55 . 22 Average Temperature 13 | . 9 22 . 9 Received Heat Transfer 534 | . 423 57 . 54 Siege Activations . | . . . . . Martial Activations . | . . . . . Shielding Activations . | . . . . . Robots Disrupted . | . . . . . Combat Hostiles . | . . . . . Robots Corrupted . | . . . . . Combat Hostiles . | . . . . . Parts Fried . | . . . . . Impact Corruptions . | . . . . . Robots Melted . | . . . . . Combat Hostiles . | . . . . . Parts Melted . | . . . . . Heat Transferred . | . . . . . Parts Sabotaged . | . . . . . Parts Stolen . | . . . . . Parts Stripped . | . . . . . Power Chain Reactions . | . . . . . Alert | -11 -10 -10 -10 -9 ------- Run | Yrd Mat Min Exi Min Maximum Alert Level . | . . . . . Low Security (%) 100 | 100 100 100 . 100 Level 1 . | . . . . . Level 2 . | . . . . . Level 3 . | . . . . . Level 4 . | . . . . . Level 5 . | . . . . . High Security . | . . . . . Max Security . | . . . . . Peak Influence 142 | . 142 70 . . Initial 13 | . . 13 . . Average 36 | . 42 14 . . Influence Increases 770 | . 650 120 . . Destroy 0b10 Robot/C 440 | . 340 100 . . Destroy 0b10 Robot/NC 40 | . 40 . . . Destroy Leader 110 | . 90 20 . . Successful Hack 59 | . 59 . . . Select Force Hacks 60 | . 60 . . . Disable Machine 30 | . 30 . . . Destroy Structure 1 | . 1 . . . Lose Combat Pursuer 30 | . 30 . . . Influence Decreases 770 | . 614 136 20 . Entered New Map 43 | . . 23 20 . Time Decay 659 | . 556 103 . . Lost Part 30 | . 20 10 . . Purge Threat 38 | . 38 . . . Squads Dispatched 3 | . 3 . . . Investigation 2 | . 2 . . . Extermination . | . . . . . Reinforcement 1 | . 1 . . . Assault . | . . . . . Garrison . | . . . . . Intercept . | . . . . . Searches Triggered . | . . . . . Construction Impeded . | . . . . . Haulers Reinforced . | . . . . . Active Scanning Responses . | . . . . . Cargo Convoy Interrupts . | . . . . . Stealth | -11 -10 -10 -10 -9 --------- Run | Yrd Mat Min Exi Min Distress Signals 2 | . 2 . . . Communications Jammed . | . . . . . Distress Signals . | . . . . . Times Spotted 37 | . 29 5 . 3 Peak Tracking Total 3 | . 3 3 . 3 Tactical Retreats 2 | . 2 . . . Traps | -11 -10 -10 -10 -9 ------- Run | Yrd Mat Min Exi Min Traps Triggered 3 | . 3 . . . Indirectly . | . . . . . Trap Hack Attempts . | . . . . . Triggered . | . . . . . Disarmed . | . . . . . Reprogrammed . | . . . . . Reused . | . . . . . Traps Extracted . | . . . . . Installed . | . . . . . Triggered . | . . . . . Machines | -11 -10 -10 -10 -9 ---------- Run | Yrd Mat Min Exi Min Machines Disabled 2 | . 2 . . . Max in Single Turn 1 | . 1 . . . Machines Repaired . | . . . . . Machines Dismantled . | . . . . . Machines Sabotaged . | . . . . . Overloaded Fab Kills . | . . . . . Hacking | -11 -10 -10 -10 -9 --------- Run | Yrd Mat Min Exi Min Machines Accessed 11 | . 10 . 1 . Terminals 7 | . 7 . . . Fabricators . | . . . . . Repair Stations 1 | . 1 . . . Recycling Units 2 | . 2 . . . Scanalyzers . | . . . . . Garrison Access . | . . . . . Total Hacks 30 | . 29 . 1 . Successful 18 | . 17 . 1 . Failed 12 | . 12 . . . Catastrophic 2 | . 2 . . . Database Lockouts . | . . . . . Manual 21 | . 20 . 1 . Terminals 21 | . 21 . . . Fabricators . | . . . . . Repair Stations 6 | . 6 . . . Recycling Units 2 | . 2 . . . Scanalyzers . | . . . . . Garrison Access . | . . . . . Terminal Hacks 5 | . 4 . 1 . Robot Schematic 1 | . 1 . . . Robot Analysis 2 | . 2 . . . Unreport Threat 1 | . 1 . . . Proto ID Catalog 1 | . . . 1 . Fabricator Hacks . | . . . . . Repair Station Hacks 4 | . 4 . . . Scan Component 2 | . 2 . . . Repair 2 | . 2 . . . Recycling Unit Hacks . | . . . . . Scanalyzer . | . . . . . Garrison Access Hacks . | . . . . . Unauthorized Hacks 9 | . 9 . . . Terminals 7 | . 7 . . . Botnet 2 | . 2 . . . Skim 5 | . 5 . . . Fabricators . | . . . . . Repair Stations . | . . . . . Recycling Units 2 | . 2 . . . Tunnel 2 | . 2 . . . Scanalyzers . | . . . . . Garrison Access . | . . . . . Data Cores Recovered . | . . . . . Used . | . . . . . Hacking Detections 7 | . 7 . . . Full Trace Events . | . . . . . Feedback Events . | . . . . . Feedback Blocked . | . . . . . Robot Schematics Acquired 1 | . 1 . . . Robots Built . | . . . . . Authchips . | . . . . . Time . | . . . . . Total Robot Build Rating . | . . . . . Part Schematics Acquired . | . . . . . Parts Built . | . . . . . Authchips . | . . . . . Time . | . . . . . Total Part Build Rating . | . . . . . Parts Repaired 2 | . 2 . . . Time 26 | . 26 . . . Parts Recycled . | . . . . . Recycled Matter . | . . . . . Retrieved Matter . | . . . . . Retrieved Components . | . . . . . Parts Scanalyzed . | . . . . . Part Schematics Acquired . | . . . . . Parts Damaged . | . . . . . Bothacking | -11 -10 -10 -10 -9 ------------ Run | Yrd Mat Min Exi Min Used RIF Installer . | . . . . . Robots Hacked . | . . . . . Non-combat . | . . . . . Combat . | . . . . . Robot Hacks Applied . | . . . . . Relay Couplers Released . | . . . . . Fabnet Peak Effective % . | . . . . . Robots Rewired . | . . . . . Allies Hacked . | . . . . . Hacks Repelled . | . . . . . Allies | -11 -10 -10 -10 -9 -------- Run | Yrd Mat Min Exi Min Total Allies . | . . . . . Largest Group . | . . . . . Highest-Rated Group . | . . . . . Highest-Rated Ally . | . . . . . Total Orders . | . . . . . Ally Attacks . | . . . . . Total Damage . | . . . . . Kills . | . . . . . Allies Corrupted . | . . . . . Allies Melted . | . . . . . Intel | -11 -10 -10 -10 -9 ------- Run | Yrd Mat Min Exi Min Active Infowar (turns) . | . . . . . Robot Analysis Total 2 | . 2 . . . Derelict Logs Recovered 2 | . . 2 . . Drone Launches . | . . . . . Drone Recoveries . | . . . . . Exploration | -11 -10 -10 -10 -9 ------------- Run | Yrd Mat Min Exi Min Turns Passed 3523 | 60 2438 482 525 18 Spaces Moved 1392 | 35 948 186 218 5 Core 7 | 7 . . . . Treads 1078 | 28 641 186 218 5 Legs . | . . . . . Wheels 307 | . 307 . . . Hover . | . . . . . Flight . | . . . . . Fastest Speed 50 | 50 145 240 240 240 Average Speed 213 | 140 205 240 240 240 Slowest Speed 320 | 160 320 240 240 240 Overloaded Moves . | . . . . . Propulsion Burnouts . | . . . . . Robots Hopped . | . . . . . Potential Cave-ins . | . . . . . Cave-ins Triggered . | . . . . . Exploration Rate (%) 41 | 4 99 41 59 5 Regions Visited 4 Branch Regions 3 Pre-discovered Areas 4 | . 3 1 . . Known Exits Taken 1 | . . 1 . . Unknown Exits Taken 3 | 1 1 . 1 . Scrap Searched 1 | . . 1 . . Spaces Dug . | . . . . . Terrain Destroyed . | . . . . . Melee . | . . . . . Projectile . | . . . . . AOE . | . . . . . Terrain Rammed . | . . . . . Walls Destroyed . | . . . . . Machines Disabled . | . . . . . Actions | -11 -10 -10 -10 -9 --------- Run | Yrd Mat Min Exi Min Total 1721 | 42 1249 200 222 8 Wait 163 | . 163 . . . Move 1388 | 34 947 185 217 5 Hop . | . . . . . Pick Up 23 | 1 19 1 2 . Fast Attach 16 | 6 10 . . . Attach 7 | . 5 1 . 1 Detach 2 | . 2 . . . Swap 5 | . 4 1 . . Drop 4 | . 1 . 3 . Fire 108 | . 94 12 . 2 Melee . | . . . . . Ram . | . . . . . Kick . | . . . . . Crush 5 | 1 4 . . . Escape Stasis . | . . . . . Rewire . | . . . . . Trap . | . . . . . Miscellaneous . | . . . . . Route ------- -11/Scrapyard -10/Materials (discovered 5 exits: *Mat x3 / [*Min] / *Sub) -10/Mines (discovered 4 exits: *Mat x2 / *Exi / Sub) -10/Exiles -9/Mines History --------- Turn | Location | Event 18 | -11/Scrapyard | Discovered new exit (range 16) 61 | -11/Scrapyard | Entered Materials 253 | -10/Materials | Discovered new exit (range 11) 309 | -10/Materials | Build established: Mutant 531 | -10/Materials | Discovered new exit (range 11) 859 | -10/Materials | Learned 2 Storage zone layouts 895 | -10/Materials | Learned 4 Recycling zone layouts 921 | -10/Materials | Learned Storage security intel 937 | -10/Materials | Learned location of Recycling (-9) 943 | -10/Materials | Learned Storage emergency access door positions 944 | -10/Materials | Learned Storage emergency access door positions 945 | -10/Materials | Learned location of 2 exits from Mines 946 | -10/Materials | Learned Storage stockpile data 959 | -10/Materials | Learned 2 Storage zone layouts 1005 | -10/Materials | Discovered new exit (range 14) 1181 | -10/Materials | Discovered new exit (range 8) 1560 | -10/Materials | Discovered new exit (range 7) 1853 | -10/Materials | Core integrity fell below 50% 2437 | -10/Materials | Repaired Lgt. Treads 2452 | -10/Materials | Repaired Lgt. Treads 2499 | -10/Materials | Entered Mines 2500 | -10/Mines | Identified exit to Subcaves 2500 | -10/Mines | Identified exit to Materials 2569 | -10/Mines | Identified exit to Exiles 2687 | -10/Mines | Discovered exit to Materials (range 8) 2771 | -10/Mines | Learned location of Zion (-6) 2971 | -10/Mines | Deemed a non-threat by the Exiles lab entrance 2981 | -10/Mines | Entered Exiles 3039 | -10/Exiles | Met 8R-AWN 3080 | -10/Exiles | Met EX-HEX 3145 | -10/Exiles | Met EX-BIN 3181 | -10/Exiles | Aligned with FarCom system 3183 | -10/Exiles | Given EX-Vault access code 3240 | -10/Exiles | Opened EX-Vault 3259 | -10/Exiles | Found Gui. Plasma Cannon 3277 | -10/Exiles | Found Latent Energy Streamer 3323 | -10/Exiles | Warned to stay clear of 0b10 Research branches 3393 | -10/Exiles | Met EX-DEC 3482 | -10/Exiles | Discovered new exit (range 12) 3506 | -10/Exiles | Stole two prototypes: Latent Energy Streamer, Gui. Plasma Cannon 3506 | -10/Exiles | Entered Mines 3514 | -9/Mines | Core integrity fell below 20% 3524 | -9/Mines | Destroyed by L-31 Rogue with Katana Last Messages --------------- 03259_ Acquired Gui. Plasma Cannon. 03277_ Acquired Latent Energy Streamer. EX-BIN: Oh yeah, I'd suggest you stay away from the 0b10 Research branches, since the FarCom signals could be picked up there, but you're welcome to try if you really want to. And if we have to leave here due to unforeseen circumstances, don't worry the FarCom system will continue to maintain contact via our distributed network. EX-BIN: And don't even think about spreading that code around. We're gonna change it right after you leave. Most certainly not to something like 1234 which I did last time as a little joke and some thief managed to sneak in here and steal a few of HEX's prototypes. EX-DEC: Ah I see we have a visitor. One wrong move in here and I'll invert your atomic chain! 03395_ EX-DEC: "Oops, I hope HEX didn't hear that..." 03482_ EXIT=FOUND LOCATION=UNKNOWN GOAL=ESCAPE 03506_ Receiving FarCom transmissions... 03508_ Lgt. Armor Plating severed. Map ----- +----------------------------------------------------+ | ???????????????????????????????????????????? | | ???????????????????????????????????????????? | | ???????????????????????????????????????????? | | ???????????????????????????????????????????? | | ???????????????????????????????????????????? | | ???????????????????????????????????????????? | | ???????????????????????????????????????????? | | ???????????????????????????????????????????? | | ???????????????????????????????????????????? | | ???????????????????????????????????????????? | | ?????????? ????????????????????????????????? | | ?????????# ???????????????????????????????? | | ?????????? ???????????????????????????????? | | ?????????? ???????????????????????????????? | | ?????????? ???????????????????????????????? | | ??????????? ??????????????????????????????? | | ??????????? ??????????????????????????????? | | ??????????? ??????????????????????????????? | | ???????????? ??????????????????????????????? | | ???????????? ?????????????????????????????? | | ????????????# ?????????????????????????????? | | ????????????# ?????????????????????????????? | | ???????????## ###??????????????????????????? | | ??????????## #####??????????????????????? | | ??????????# ! gl #??????????????????????? | | ??????????# ##@#??????????????????????? | | ??????????## g### #??????????????????????? | | ???????????## ##?# #??????????????????????? | | ????????????# #??# #??????????????????????? | | ????????????# #?? #??????????????????????? | | ????????????# ?? #??????????????????????? | | ????????????# ?? ??????????????????????? | | ????????????# ?? ??????????????????????? | | ????????????# ?? ??????????????????????? | | ????????????## ?? ??????????????????????? | | ?????????????? ? ??????????????????????? | | ??????????????# ? ??????????????????????? | | ???????????????#? ??????????????????????? | | ????????????????? ##??????????????????????? | | ?????????????????##????????????????????????? | | ???????????????????????????????????????????? | | ???????????????????????????????????????????? | | ???????????????????????????????????????????? | | ???????????????????????????????????????????? | | ???????????????????????????????????????????? | | ???????????????????????????????????????????? | | ???????????????????????????????????????????? | | ???????????????????????????????????????????? | | ???????????????????????????????????????????? | | ???????????????????????????????????????????? | +----------------------------------------------------+ Best States ------------- Heat Dissipation 25 Energy Generation 14 Energy Capacity 160 Matter Stores 300 Matter Capacity 300 Sight Range 16 Terrain Scan Density 10 Armor Coverage 150 Propulsion Shielding 33 Evasion (%) 40 Recoil Reduction 2 Item Schematics ----------------- None Robot Schematics ------------------ M-13 Machinist | -10/Materials | Hacked Fabricated ------------ Nothing Repaired ---------- Lgt. Treads | 7% | -10/Materials Lgt. Treads | 58% | -10/Materials Alien Tech Used ----------------- None Achievements -------------- None Challenges ------------ None Game ------ Seed CompactAssemblySpiker Manual? 0 Play Time 00:10:04 Cumulative 731.2 hours Start 2025.09.04 @ 17:50:49 End 2025.09.04 @ 18:01:38 Sessions 1 Manual Loads 0 Difficulty Rogue Special Mode None Game No. 380 Rogue 380 Adventurer 0 Explorer 0 Win Type - Total 58 Types 39/4/5/2/1/1/3/1/1/1 Lore% 92 Gallery% 85 Achievement% 91 Wizard Run 0 Options --------- Layout 0 ASCII 0 Keyboard 1 Movement Numpad Keybinds 0 Fullscreen 2 Font 18/SmallcapsGlow Map View 76x50 Zoom Use 0% Tactical HUD 1 Map Filters NONE Filters NONE Steam 1 RUN: c2c6c4bf-0b83-4435-8f19-b710f53b8226